[Event "Live Chess"]
[Site "Chess.com"]
[Date "2023.05.21"]
[Round "-"]
[White "peter-785"]
[Black "domrobson"]
[Result "1-0"]
[WhiteElo "1178"]
[BlackElo "1768"]
[TimeControl "300"]
[EndTime "17:03:25 PDT"]
[Termination "peter-785 won by resignation"]

1. e4 {[%clk 0:04:56.7]} 1... e5 {[%clk 0:04:59.1]} 2. Nf3 {[%clk 0:04:56.1]}
2... Nc6 {[%clk 0:04:57.5]} 3. Bc4 {[%clk 0:04:55.3]} 3... Nf6 {[%clk
0:04:56.9]} 4. Nc3 {[%clk 0:04:52.6]} 4... Nxe4 {[%clk 0:04:54.8]} 5. Bxf7+
{[%clk 0:04:29.2]} 5... Kxf7 {[%clk 0:04:46]} 6. Nxe4 {[%clk 0:04:27.7]} 6... d5
{[%clk 0:04:45.4]} 7. Neg5+ {[%clk 0:04:23.3]} 7... Kg8 {[%clk 0:04:44.2]} 8.
Nh3 {[%clk 0:03:21]} 8... e4 {[%clk 0:04:41.9]} 9. Nfg1 {[%clk 0:03:17]} 9...
Qg5 {[%clk 0:04:32.3]} 10. Nxg5 {[%clk 0:03:12.9]} 10... Bg4 {[%clk 0:04:25.9]}
11. f3 {[%clk 0:03:07.2]} 1-0

[Event "Live Chess"]
[Site "Chess.com"]
[Date "2023.05.21"]
[Round "-"]
[White "educatedlad"]
[Black "LiamClery2020"]
[Result "0-1"]
[WhiteElo "1627"]
[BlackElo "2044"]
[TimeControl "300"]
[EndTime "17:03:58 PDT"]
[Termination "LiamClery2020 won by resignation"]

1. e4 {[%clk 0:04:59.2]} 1... Nf6 {[%clk 0:04:59.9]} 2. e5 {[%clk 0:04:57.4]}
2... Nd5 {[%clk 0:04:59.3]} 3. Nc3 {[%clk 0:04:57.3]} 3... Nxc3 {[%clk
0:04:58.5]} 4. dxc3 {[%clk 0:04:57.1]} 4... d6 {[%clk 0:04:58]} 5. exd6 {[%clk
0:04:54.7]} 5... Qxd6 {[%clk 0:04:57.9]} 6. Qxd6 {[%clk 0:04:52.9]} 6... cxd6
{[%clk 0:04:57.8]} 7. Be3 {[%clk 0:04:52.2]} 7... Nc6 {[%clk 0:04:57.7]} 8.
O-O-O {[%clk 0:04:51.5]} 8... e5 {[%clk 0:04:57.3]} 9. Bb5 {[%clk 0:04:50.7]}
9... Bd7 {[%clk 0:04:56.5]} 10. Nf3 {[%clk 0:04:49.5]} 10... Be7 {[%clk
0:04:55.8]} 11. Rhf1 {[%clk 0:04:47.2]} 11... O-O {[%clk 0:04:55.2]} 12. Rfe1
{[%clk 0:04:46.2]} 12... a6 {[%clk 0:04:51.8]} 13. Bxc6 {[%clk 0:04:40.4]} 13...
Bxc6 {[%clk 0:04:51.7]} 14. Ng5 {[%clk 0:04:34.5]} 14... Bxg2 {[%clk 0:04:48.8]}
15. f3 {[%clk 0:04:32.3]} 15... f6 {[%clk 0:04:41.6]} 16. Ne6 {[%clk 0:04:28.8]}
16... Bxf3 {[%clk 0:04:32.9]} 17. Rg1 {[%clk 0:04:24.4]} 17... Bxd1 {[%clk
0:04:28.5]} 18. Rxg7+ {[%clk 0:04:22.4]} 18... Kh8 {[%clk 0:04:28]} 19. Rxe7
{[%clk 0:04:19.2]} 19... Rae8 {[%clk 0:04:20.7]} 20. Nxf8 {[%clk 0:04:09.3]}
20... Rxe7 {[%clk 0:04:19.1]} 21. Kxd1 {[%clk 0:04:07.7]} 21... Kg7 {[%clk
0:04:17]} 22. Ne6+ {[%clk 0:03:55.6]} 22... Rxe6 {[%clk 0:04:15.9]} 0-1

[Event "Live Chess"]
[Site "Chess.com"]
[Date "2023.05.21"]
[Round "-"]
[White "grillage"]
[Black "toog"]
[Result "0-1"]
[WhiteElo "1831"]
[BlackElo "2582"]
[TimeControl "300"]
[EndTime "17:04:36 PDT"]
[Termination "toog won on time"]

1. d4 {[%clk 0:04:59.5]} 1... Nf6 {[%clk 0:04:56.8]} 2. Nc3 {[%clk 0:04:57.8]}
2... e6 {[%clk 0:04:53.3]} 3. Bf4 {[%clk 0:04:54.7]} 3... b6 {[%clk 0:04:47.2]}
4. e3 {[%clk 0:04:38.8]} 4... Bb7 {[%clk 0:04:44.5]} 5. Nf3 {[%clk 0:04:34]}
5... d6 {[%clk 0:04:43.4]} 6. Bb5+ {[%clk 0:04:26]} 6... Nbd7 {[%clk 0:04:42]}
7. Bd3 {[%clk 0:04:22]} 7... Be7 {[%clk 0:04:40.5]} 8. O-O {[%clk 0:04:16.7]}
8... O-O {[%clk 0:04:40]} 9. Re1 {[%clk 0:04:13.3]} 9... Re8 {[%clk 0:04:38.9]}
10. e4 {[%clk 0:04:11]} 10... Bf8 {[%clk 0:04:30.4]} 11. e5 {[%clk 0:04:04.6]}
11... Nd5 {[%clk 0:04:25.3]} 12. Nxd5 {[%clk 0:04:00.5]} 12... Bxd5 {[%clk
0:04:24.5]} 13. c4 {[%clk 0:03:57.6]} 13... Bb7 {[%clk 0:04:22.3]} 14. Bxh7+
{[%clk 0:03:38.7]} 14... Kxh7 {[%clk 0:04:22.2]} 15. Ng5+ {[%clk 0:03:37.2]}
15... Kg6 {[%clk 0:04:06.3]} 16. Qg4 {[%clk 0:03:28.6]} 16... f5 {[%clk
0:03:59.6]} 17. Qh4 {[%clk 0:03:16.2]} 17... dxe5 {[%clk 0:03:52.8]} 18. dxe5
{[%clk 0:03:09.8]} 18... Nxe5 {[%clk 0:03:40.2]} 19. Qh7+ {[%clk 0:03:07.9]}
19... Kf6 {[%clk 0:03:38.3]} 20. Bxe5+ {[%clk 0:02:54.6]} 20... Ke7 {[%clk
0:03:32.9]} 21. Qg6 {[%clk 0:02:45.3]} 21... Kd7 {[%clk 0:03:29.4]} 22. Rad1+
{[%clk 0:02:40.9]} 22... Bd6 {[%clk 0:03:27.1]} 23. Bxd6 {[%clk 0:02:34.7]}
23... cxd6 {[%clk 0:03:25.8]} 24. Nxe6 {[%clk 0:02:27.8]} 24... Qf6 {[%clk
0:03:21.4]} 25. Qxg7+ {[%clk 0:02:05.4]} 25... Qxg7 {[%clk 0:03:18.3]} 26. Nxg7
{[%clk 0:02:04.8]} 26... Rg8 {[%clk 0:03:17.5]} 27. Nxf5 {[%clk 0:01:57.9]}
27... Bxg2 {[%clk 0:02:52.2]} 28. Rxd6+ {[%clk 0:01:53.6]} 28... Kc7 {[%clk
0:02:47.9]} 29. Re7+ {[%clk 0:01:51.4]} 29... Kc8 {[%clk 0:02:47.3]} 30. Ng3
{[%clk 0:01:40.5]} 30... Bf3 {[%clk 0:02:39.7]} 31. Rdd7 {[%clk 0:01:32.9]}
31... a5 {[%clk 0:02:23.7]} 32. Rg7 {[%clk 0:01:25]} 32... Re8 {[%clk
0:02:21.4]} 33. Rde7 {[%clk 0:01:22.9]} 33... Rd8 {[%clk 0:02:18.6]} 34. Rc7+
{[%clk 0:01:20.4]} 34... Kb8 {[%clk 0:02:17.8]} 35. Rcd7 {[%clk 0:01:10]} 35...
Rc8 {[%clk 0:02:17.1]} 36. Rgf7 {[%clk 0:01:01.1]} 36... Bc6 {[%clk 0:02:14.3]}
37. Rde7 {[%clk 0:00:55.6]} 37... a4 {[%clk 0:02:13.5]} 38. b3 {[%clk
0:00:53.4]} 38... axb3 {[%clk 0:02:12.2]} 39. axb3 {[%clk 0:00:44]} 39... Ra1+
{[%clk 0:02:11.1]} 40. Nf1 {[%clk 0:00:43.5]} 40... Rg8+ {[%clk 0:02:09.9]} 41.
Rg7 {[%clk 0:00:40.4]} 41... Rd8 {[%clk 0:02:08.5]} 42. f4 {[%clk 0:00:15.6]}
42... Rf8 {[%clk 0:02:01.5]} 43. Rgf7 {[%clk 0:00:12.8]} 43... Rd8 {[%clk
0:01:57.2]} 44. Kf2 {[%clk 0:00:11.9]} 44... Ra2+ {[%clk 0:01:55.9]} 45. Kg3
{[%clk 0:00:10.1]} 45... Rg8+ {[%clk 0:01:53.9]} 46. Rg7 {[%clk 0:00:08.6]}
46... Rg2+ {[%clk 0:01:52.6]} 47. Kh4 {[%clk 0:00:04]} 47... R2xg7 {[%clk
0:01:52.5]} 48. Rxg7 {[%clk 0:00:02.4]} 48... Rxg7 {[%clk 0:01:52.4]} 49. f5
{[%clk 0:00:01]} 49... Rg2 {[%clk 0:01:49.7]} 0-1

[Event "Live Chess"]
[Site "Chess.com"]
[Date "2023.05.21"]
[Round "-"]
[White "flyingpuffins"]
[Black "gmnorfolk"]
[Result "0-1"]
[WhiteElo "1957"]
[BlackElo "2117"]
[TimeControl "300"]
[EndTime "17:04:36 PDT"]
[Termination "gmnorfolk won by resignation"]

1. e4 {[%clk 0:04:57.8]} 1... c5 {[%clk 0:04:58.1]} 2. Nf3 {[%clk 0:04:56.7]}
2... d6 {[%clk 0:04:57.3]} 3. d4 {[%clk 0:04:55.7]} 3... cxd4 {[%clk 0:04:56.9]}
4. Nxd4 {[%clk 0:04:55.6]} 4... Nf6 {[%clk 0:04:55.8]} 5. Nc3 {[%clk 0:04:55.2]}
5... a6 {[%clk 0:04:54.2]} 6. Bc4 {[%clk 0:04:53.6]} 6... e6 {[%clk 0:04:52.7]}
7. Bb3 {[%clk 0:04:53]} 7... Nbd7 {[%clk 0:04:51.8]} 8. O-O {[%clk 0:04:47]}
8... Nc5 {[%clk 0:04:50.7]} 9. Kh1 {[%clk 0:04:43.6]} 9... Ncxe4 {[%clk
0:04:44.4]} 10. Nxe4 {[%clk 0:04:40.5]} 10... Nxe4 {[%clk 0:04:44.3]} 11. Qf3
{[%clk 0:04:36.3]} 11... d5 {[%clk 0:04:40.7]} 12. Bf4 {[%clk 0:04:32.6]} 12...
Bd6 {[%clk 0:04:39.3]} 13. Be3 {[%clk 0:04:25.8]} 13... O-O {[%clk 0:04:37.1]}
14. c3 {[%clk 0:04:22.9]} 14... Qh4 {[%clk 0:04:33.3]} 15. h3 {[%clk 0:04:16.6]}
15... Qf6 {[%clk 0:04:28]} 16. Qg4 {[%clk 0:04:13.7]} 16... e5 {[%clk
0:04:18.8]} 0-1

[Event "Live Chess"]
[Site "Chess.com"]
[Date "2023.05.21"]
[Round "-"]
[White "Tilbs_12"]
[Black "AbilifyXL"]
[Result "0-1"]
[WhiteElo "1544"]
[BlackElo "1952"]
[TimeControl "300"]
[EndTime "17:04:37 PDT"]
[Termination "AbilifyXL won by checkmate"]

1. e4 {[%clk 0:04:58.5]} 1... d5 {[%clk 0:04:59.7]} 2. exd5 {[%clk 0:04:57.4]}
2... Qxd5 {[%clk 0:04:54.5]} 3. Nc3 {[%clk 0:04:56.9]} 3... Qa5 {[%clk
0:04:53.4]} 4. Bc4 {[%clk 0:04:54.2]} 4... c6 {[%clk 0:04:52.7]} 5. Nf3 {[%clk
0:04:52.2]} 5... Nf6 {[%clk 0:04:52]} 6. h3 {[%clk 0:04:50.2]} 6... Bf5 {[%clk
0:04:50.8]} 7. O-O {[%clk 0:04:47.5]} 7... e6 {[%clk 0:04:50]} 8. d3 {[%clk
0:04:41.1]} 8... Be7 {[%clk 0:04:47.2]} 9. Bf4 {[%clk 0:04:33.3]} 9... Nbd7
{[%clk 0:04:44.9]} 10. a3 {[%clk 0:04:28.5]} 10... O-O {[%clk 0:04:43]} 11. b4
{[%clk 0:04:27.4]} 11... Qd8 {[%clk 0:04:41.2]} 12. Re1 {[%clk 0:04:25.2]} 12...
Nb6 {[%clk 0:04:39.9]} 13. Bb3 {[%clk 0:04:22.4]} 13... Nbd5 {[%clk 0:04:36.8]}
14. Nxd5 {[%clk 0:04:20.6]} 14... cxd5 {[%clk 0:04:36.3]} 15. Nd4 {[%clk
0:04:06.3]} 15... Bg6 {[%clk 0:04:32.9]} 16. c4 {[%clk 0:03:51.1]} 16... Rc8
{[%clk 0:04:27.7]} 17. c5 {[%clk 0:03:49]} 17... a6 {[%clk 0:04:14.4]} 18. Nf3
{[%clk 0:03:45.3]} 18... d4 {[%clk 0:04:05.6]} 19. Be5 {[%clk 0:03:34.6]} 19...
Bh5 {[%clk 0:03:53.7]} 20. g4 {[%clk 0:03:33.3]} 20... Bg6 {[%clk 0:03:52.1]}
21. Nxd4 {[%clk 0:03:24.1]} 21... Nd5 {[%clk 0:03:48.2]} 22. Nf3 {[%clk
0:03:11.6]} 22... Bf6 {[%clk 0:03:45.6]} 23. Bxf6 {[%clk 0:03:09.1]} 23... Qxf6
{[%clk 0:03:43.3]} 24. d4 {[%clk 0:03:03.9]} 24... Nf4 {[%clk 0:03:32.6]} 25.
Kh2 {[%clk 0:02:50]} 25... Rcd8 {[%clk 0:03:29.6]} 26. Bc2 {[%clk 0:02:40.4]}
26... Rfe8 {[%clk 0:03:24.6]} 27. Bxg6 {[%clk 0:02:38.8]} 27... hxg6 {[%clk
0:03:20.2]} 28. Re5 {[%clk 0:02:10.1]} 28... Rd5 {[%clk 0:03:14.8]} 29. Rxd5
{[%clk 0:02:07.8]} 29... exd5 {[%clk 0:03:12.5]} 30. Qa4 {[%clk 0:01:43.9]}
30... Re2 {[%clk 0:03:02.5]} 31. Kg3 {[%clk 0:01:36.2]} 31... Nd3 {[%clk
0:02:58.8]} 32. Re1 {[%clk 0:01:27.6]} 32... Qf4+ {[%clk 0:02:54.7]} 33. Kh4
{[%clk 0:01:19.6]} 33... Qxf3 {[%clk 0:02:47.2]} 34. Rxe2 {[%clk 0:01:18]} 34...
Qxe2 {[%clk 0:02:46]} 35. Kg3 {[%clk 0:01:05.2]} 35... Qxf2# {[%clk 0:02:44.7]}
0-1

[Event "Live Chess"]
[Site "Chess.com"]
[Date "2023.05.21"]
[Round "-"]
[White "JohanKjeldahl"]
[Black "Olisingapore"]
[Result "1-0"]
[WhiteElo "1868"]
[BlackElo "1811"]
[TimeControl "300"]
[EndTime "17:04:46 PDT"]
[Termination "JohanKjeldahl won by checkmate"]

1. e4 {[%clk 0:04:57]} 1... c5 {[%clk 0:04:59.6]} 2. Nf3 {[%clk 0:04:54.9]} 2...
d6 {[%clk 0:04:59]} 3. d4 {[%clk 0:04:53.6]} 3... cxd4 {[%clk 0:04:58.9]} 4.
Nxd4 {[%clk 0:04:51.9]} 4... Nf6 {[%clk 0:04:58.6]} 5. Nc3 {[%clk 0:04:49.2]}
5... a6 {[%clk 0:04:58.1]} 6. Bg5 {[%clk 0:04:46.9]} 6... e6 {[%clk 0:04:57.3]}
7. f4 {[%clk 0:04:45.5]} 7... Be7 {[%clk 0:04:55.4]} 8. Qf3 {[%clk 0:04:44.3]}
8... Qc7 {[%clk 0:04:55]} 9. O-O-O {[%clk 0:04:42.4]} 9... Nbd7 {[%clk 0:04:49]}
10. g4 {[%clk 0:04:35.2]} 10... h6 {[%clk 0:04:45.4]} 11. Bxf6 {[%clk
0:04:33.7]} 11... Bxf6 {[%clk 0:04:42.8]} 12. f5 {[%clk 0:04:22.7]} 12... e5
{[%clk 0:04:40.6]} 13. Nd5 {[%clk 0:04:13.5]} 13... Qd8 {[%clk 0:04:28.3]} 14.
Nb3 {[%clk 0:04:08.1]} 14... b5 {[%clk 0:04:19.4]} 15. Kb1 {[%clk 0:03:57.4]}
15... Bb7 {[%clk 0:04:15.4]} 16. Nxf6+ {[%clk 0:03:38]} 16... Nxf6 {[%clk
0:04:13.3]} 17. h4 {[%clk 0:03:36.3]} 17... Bxe4 {[%clk 0:04:06.4]} 18. Qh3
{[%clk 0:03:28.5]} 18... Bxh1 {[%clk 0:04:02.8]} 19. Qxh1 {[%clk 0:03:26.6]}
19... Rc8 {[%clk 0:04:00.3]} 20. Qg2 {[%clk 0:03:20.4]} 20... Qc7 {[%clk
0:03:56.9]} 21. g5 {[%clk 0:03:14.3]} 21... hxg5 {[%clk 0:03:51.1]} 22. hxg5
{[%clk 0:03:12.9]} 22... Nh5 {[%clk 0:03:49.4]} 23. g6 {[%clk 0:03:03.8]} 23...
f6 {[%clk 0:03:46.8]} 24. Bd3 {[%clk 0:03:00.1]} 24... Nf4 {[%clk 0:03:42.1]}
25. Qf3 {[%clk 0:02:53.3]} 25... Nxd3 {[%clk 0:03:30.7]} 26. Qxd3 {[%clk
0:02:50.9]} 26... Qc6 {[%clk 0:03:24.3]} 27. Na5 {[%clk 0:02:46.6]} 27... Qg2
{[%clk 0:03:07.1]} 28. Nb7 {[%clk 0:02:43.4]} 28... Qxb7 {[%clk 0:03:02.9]} 29.
Qxd6 {[%clk 0:02:39.4]} 29... Qc6 {[%clk 0:02:57.9]} 30. Qd3 {[%clk 0:02:28.6]}
30... Rh2 {[%clk 0:02:49.6]} 31. c3 {[%clk 0:02:25.3]} 31... Qg2 {[%clk
0:02:44.4]} 32. Qd7+ {[%clk 0:02:21.4]} 32... Kf8 {[%clk 0:02:37.5]} 33. Qf7#
{[%clk 0:02:19.9]} 1-0

[Event "Live Chess"]
[Site "Chess.com"]
[Date "2023.05.21"]
[Round "-"]
[White "wot-not"]
[Black "EdenHazard8"]
[Result "0-1"]
[WhiteElo "1545"]
[BlackElo "2001"]
[TimeControl "300"]
[EndTime "17:04:51 PDT"]
[Termination "EdenHazard8 won by checkmate"]

1. e4 {[%clk 0:04:59.2]} 1... c6 {[%clk 0:04:58.1]} 2. f4 {[%clk 0:04:57.9]}
2... d5 {[%clk 0:04:58]} 3. e5 {[%clk 0:04:57.2]} 3... c5 {[%clk 0:04:57]} 4.
Nf3 {[%clk 0:04:57]} 4... Nc6 {[%clk 0:04:56.9]} 5. d4 {[%clk 0:04:56.5]} 5...
Bg4 {[%clk 0:04:56.2]} 6. Bd3 {[%clk 0:04:56.2]} 6... e6 {[%clk 0:04:55]} 7. O-O
{[%clk 0:04:54.9]} 7... Nxd4 {[%clk 0:04:52.8]} 8. Nbd2 {[%clk 0:04:54.6]} 8...
Nc6 {[%clk 0:04:51.6]} 9. h3 {[%clk 0:04:51.8]} 9... Bh5 {[%clk 0:04:48.3]} 10.
f5 {[%clk 0:04:47.1]} 10... c4 {[%clk 0:04:45]} 11. fxe6 {[%clk 0:04:42.6]}
11... fxe6 {[%clk 0:04:40.7]} 12. Be2 {[%clk 0:04:39.4]} 12... Bc5+ {[%clk
0:04:34.9]} 13. Kh1 {[%clk 0:04:38]} 13... Nge7 {[%clk 0:04:33.4]} 14. Ng5
{[%clk 0:04:36.8]} 14... Bxe2 {[%clk 0:04:30.4]} 15. Qxe2 {[%clk 0:04:34.3]}
15... Nd4 {[%clk 0:04:26.4]} 16. Qh5+ {[%clk 0:04:27.8]} 16... g6 {[%clk
0:04:23.4]} 17. Qh6 {[%clk 0:04:22.9]} 17... Nef5 {[%clk 0:04:22.1]} 18. Nf7
{[%clk 0:04:12.2]} 18... Ng3+ {[%clk 0:04:00.1]} 19. Kh2 {[%clk 0:04:02.4]}
19... Nxf1+ {[%clk 0:03:58.9]} 20. Kh1 {[%clk 0:04:01.8]} 20... Ng3+ {[%clk
0:03:57.1]} 21. Kh2 {[%clk 0:04:01.1]} 21... Nde2 {[%clk 0:03:53.6]} 22. Nxd8
{[%clk 0:03:45]} 22... Bg1# {[%clk 0:03:51.7]} 0-1

[Event "Live Chess"]
[Site "Chess.com"]
[Date "2023.05.21"]
[Round "-"]
[White "AlanPaling"]
[Black "Cimon"]
[Result "0-1"]
[WhiteElo "1381"]
[BlackElo "1875"]
[TimeControl "300"]
[EndTime "17:05:07 PDT"]
[Termination "Cimon won on time"]

1. c4 {[%clk 0:04:58.6]} 1... Nf6 {[%clk 0:04:56.4]} 2. Nc3 {[%clk 0:04:57.2]}
2... e6 {[%clk 0:04:54.7]} 3. e4 {[%clk 0:04:52.7]} 3... d6 {[%clk 0:04:50.4]}
4. g3 {[%clk 0:04:50.8]} 4... c5 {[%clk 0:04:48.2]} 5. Bg2 {[%clk 0:04:49.6]}
5... Nc6 {[%clk 0:04:46.7]} 6. f4 {[%clk 0:04:47.1]} 6... a6 {[%clk 0:04:43.5]}
7. Nge2 {[%clk 0:04:45.8]} 7... Qc7 {[%clk 0:04:41.9]} 8. O-O {[%clk 0:04:44.3]}
8... Be7 {[%clk 0:04:40.4]} 9. d3 {[%clk 0:04:43]} 9... O-O {[%clk 0:04:38.4]}
10. h3 {[%clk 0:04:41.8]} 10... Rb8 {[%clk 0:04:36.5]} 11. a4 {[%clk 0:04:38.1]}
11... e5 {[%clk 0:04:24.9]} 12. f5 {[%clk 0:04:35.9]} 12... Nd4 {[%clk
0:04:20.7]} 13. Be3 {[%clk 0:04:24.3]} 13... Bd7 {[%clk 0:04:13.4]} 14. g4
{[%clk 0:04:16.1]} 14... Ne8 {[%clk 0:04:05.3]} 15. b3 {[%clk 0:04:04.6]} 15...
Qd8 {[%clk 0:03:31.4]} 16. Nd5 {[%clk 0:04:02.7]} 16... Bc6 {[%clk 0:03:25.8]}
17. Nec3 {[%clk 0:04:00.8]} 17... Nf6 {[%clk 0:03:14.5]} 18. Nxe7+ {[%clk
0:03:38.9]} 18... Qxe7 {[%clk 0:03:12.4]} 19. g5 {[%clk 0:03:35.8]} 19... Nd7
{[%clk 0:03:00.5]} 20. Ne2 {[%clk 0:03:29.2]} 20... f6 {[%clk 0:02:57.5]} 21.
gxf6 {[%clk 0:03:17.1]} 21... Nxf6 {[%clk 0:02:52.8]} 22. Nxd4 {[%clk
0:03:14.6]} 22... cxd4 {[%clk 0:02:46.2]} 23. Bg5 {[%clk 0:03:13.2]} 23... b5
{[%clk 0:02:40.6]} 24. axb5 {[%clk 0:03:09.7]} 24... axb5 {[%clk 0:02:38.8]} 25.
Bf3 {[%clk 0:03:03.7]} 25... bxc4 {[%clk 0:02:34.4]} 26. bxc4 {[%clk 0:02:58.4]}
26... Ra8 {[%clk 0:02:26.3]} 27. Qd2 {[%clk 0:02:55.4]} 27... Qb7 {[%clk
0:02:13.8]} 28. Rfb1 {[%clk 0:02:46.4]} 28... Rxa1 {[%clk 0:02:09]} 29. Rxa1
{[%clk 0:02:42.9]} 29... Ra8 {[%clk 0:02:05.4]} 30. Rxa8+ {[%clk 0:02:27.2]}
30... Qxa8 {[%clk 0:02:03]} 31. Qg2 {[%clk 0:02:23.3]} 31... Qd8 {[%clk
0:01:38.7]} 32. Qb2 {[%clk 0:02:14.1]} 32... h6 {[%clk 0:01:25.8]} 33. Bh4
{[%clk 0:02:09.2]} 33... Qa8 {[%clk 0:01:21.1]} 34. Bxf6 {[%clk 0:01:50.9]}
34... gxf6 {[%clk 0:01:18.6]} 35. Kh2 {[%clk 0:01:42.5]} 35... Kf7 {[%clk
0:01:14.1]} 36. h4 {[%clk 0:01:33.8]} 36... Ke7 {[%clk 0:01:06.2]} 37. Qg2
{[%clk 0:01:29.4]} 37... Qf8 {[%clk 0:00:57.6]} 38. Qg6 {[%clk 0:01:21.7]} 38...
Be8 {[%clk 0:00:51.5]} 39. Qh7+ {[%clk 0:01:10.8]} 39... Kd8 {[%clk 0:00:45]}
40. Qb7 {[%clk 0:01:04.1]} 40... Bd7 {[%clk 0:00:42.3]} 41. Bh5 {[%clk 0:00:51]}
41... Ke7 {[%clk 0:00:23.9]} 42. Kg3 {[%clk 0:00:40.5]} 42... Qc8 {[%clk
0:00:21.4]} 43. Qxc8 {[%clk 0:00:33.4]} 43... Bxc8 {[%clk 0:00:20.3]} 44. Be2
{[%clk 0:00:28.1]} 44... Bd7 {[%clk 0:00:19.1]} 45. Kg4 {[%clk 0:00:26.7]} 45...
Be8 {[%clk 0:00:17.9]} 46. Kg3 {[%clk 0:00:22.2]} 46... Kd8 {[%clk 0:00:16.9]}
47. Kf2 {[%clk 0:00:21.2]} 47... Kc7 {[%clk 0:00:15.9]} 48. Ke1 {[%clk
0:00:19.4]} 48... Kb6 {[%clk 0:00:15]} 49. Kd2 {[%clk 0:00:18.4]} 49... Kc5
{[%clk 0:00:13.9]} 50. Kc2 {[%clk 0:00:17]} 50... Kb4 {[%clk 0:00:12.7]} 51. Kb2
{[%clk 0:00:15.4]} 51... Ba4 {[%clk 0:00:11.3]} 52. Bh5 {[%clk 0:00:12.6]} 52...
Bc6 {[%clk 0:00:09.7]} 53. Bf7 {[%clk 0:00:09.5]} 53... Ba4 {[%clk 0:00:08.3]}
54. Bd5 {[%clk 0:00:06.9]} 54... Bd1 {[%clk 0:00:07]} 55. Bf7 {[%clk 0:00:02.4]}
55... Be2 {[%clk 0:00:06]} 56. Kc2 {[%clk 0:00:00.9]} 56... Bf3 {[%clk 0:00:05]}
0-1

[Event "Live Chess"]
[Site "Chess.com"]
[Date "2023.05.21"]
[Round "-"]
[White "jimwad"]
[Black "elvenstar"]
[Result "1-0"]
[WhiteElo "1222"]
[BlackElo "1550"]
[TimeControl "300"]
[EndTime "17:05:09 PDT"]
[Termination "jimwad won on time"]

1. d4 {[%clk 0:04:56.4]} 1... Nf6 {[%clk 0:04:51.2]} 2. c4 {[%clk 0:04:54.2]}
2... e6 {[%clk 0:04:49.5]} 3. Nc3 {[%clk 0:04:51.8]} 3... d5 {[%clk 0:04:48.5]}
4. c5 {[%clk 0:04:50.4]} 4... c6 {[%clk 0:04:47]} 5. e3 {[%clk 0:04:48.8]} 5...
Be7 {[%clk 0:04:46]} 6. Nf3 {[%clk 0:04:30.7]} 6... O-O {[%clk 0:04:24.1]} 7.
Bd3 {[%clk 0:04:28.7]} 7... h6 {[%clk 0:04:21.6]} 8. O-O {[%clk 0:04:27.5]} 8...
Re8 {[%clk 0:04:19.9]} 9. b4 {[%clk 0:04:25.4]} 9... Nbd7 {[%clk 0:04:18.2]} 10.
Bb2 {[%clk 0:04:23]} 10... Nf8 {[%clk 0:04:09.9]} 11. b5 {[%clk 0:04:21.5]}
11... Bd7 {[%clk 0:04:07]} 12. a4 {[%clk 0:04:18.7]} 12... Qc7 {[%clk
0:03:55.1]} 13. Ne5 {[%clk 0:04:16.6]} 13... cxb5 {[%clk 0:03:38.3]} 14. Nxd7
{[%clk 0:04:14.1]} 14... Qxd7 {[%clk 0:03:31.9]} 15. Bxb5 {[%clk 0:04:12.2]}
15... Qc7 {[%clk 0:03:29.7]} 16. Bxe8 {[%clk 0:04:10.6]} 16... Rxe8 {[%clk
0:03:28.1]} 17. Nb5 {[%clk 0:04:09.2]} 17... Qb8 {[%clk 0:03:24.4]} 18. a5
{[%clk 0:03:55.2]} 18... a6 {[%clk 0:03:22.7]} 19. Nc3 {[%clk 0:03:46.4]} 19...
Ng6 {[%clk 0:03:20.8]} 20. Ba3 {[%clk 0:03:43.6]} 20... Qc7 {[%clk 0:03:07.4]}
21. Qa4 {[%clk 0:03:38.7]} 21... Rb8 {[%clk 0:02:50.9]} 22. Rfc1 {[%clk
0:03:28.2]} 22... Ng4 {[%clk 0:02:47.7]} 23. g3 {[%clk 0:03:25.7]} 23... Nf6
{[%clk 0:02:37.9]} 24. Ne2 {[%clk 0:03:17.7]} 24... Nh7 {[%clk 0:02:34.4]} 25.
c6 {[%clk 0:03:09.3]} 25... Bxa3 {[%clk 0:02:28.3]} 26. cxb7 {[%clk 0:03:04.9]}
26... Bxc1 {[%clk 0:02:24.1]} 27. Rxc1 {[%clk 0:02:52.5]} 27... Qxb7 {[%clk
0:02:19.5]} 28. Qc6 {[%clk 0:02:49.1]} 28... Qxc6 {[%clk 0:02:10.8]} 29. Rxc6
{[%clk 0:02:47.6]} 29... Ra8 {[%clk 0:02:09.3]} 30. Nc3 {[%clk 0:02:44]} 30...
Nf6 {[%clk 0:02:00.6]} 31. Na4 {[%clk 0:02:42.3]} 31... Ne7 {[%clk 0:01:50.1]}
32. Rb6 {[%clk 0:02:40]} 32... Ne4 {[%clk 0:01:33.3]} 33. Nc5 {[%clk 0:02:35.7]}
33... Kf8 {[%clk 0:01:16]} 34. Nxa6 {[%clk 0:02:33.2]} 34... Ke8 {[%clk
0:01:08.5]} 35. Nc7+ {[%clk 0:02:31.5]} 35... Kd8 {[%clk 0:00:59]} 36. Nxa8
{[%clk 0:02:29.9]} 36... Kc8 {[%clk 0:00:55.6]} 37. a6 {[%clk 0:02:27.7]} 37...
Nf6 {[%clk 0:00:46.9]} 38. a7 {[%clk 0:02:25.2]} 38... Nd7 {[%clk 0:00:44.7]}
39. Rb1 {[%clk 0:02:20.8]} 39... Nc6 {[%clk 0:00:37.5]} 40. Nb6+ {[%clk
0:02:12.4]} 40... Nxb6 {[%clk 0:00:35.9]} 41. Rxb6 {[%clk 0:02:09.4]} 41... Nxa7
{[%clk 0:00:34.6]} 42. Ra6 {[%clk 0:02:04.2]} 42... Kb7 {[%clk 0:00:29.1]} 43.
Ra1 {[%clk 0:01:59.6]} 43... Nc6 {[%clk 0:00:27.1]} 44. Kg2 {[%clk 0:01:55.9]}
44... Kc7 {[%clk 0:00:25.6]} 45. f3 {[%clk 0:01:55]} 45... Kd7 {[%clk
0:00:23.8]} 46. h4 {[%clk 0:01:54.2]} 46... Ke7 {[%clk 0:00:21.9]} 47. g4 {[%clk
0:01:53.2]} 47... Kf6 {[%clk 0:00:20.2]} 48. Ra6 {[%clk 0:01:50.9]} 48... Ne7
{[%clk 0:00:18.8]} 49. Kg3 {[%clk 0:01:49.2]} 49... Ng6 {[%clk 0:00:16.2]} 50.
h5 {[%clk 0:01:47.8]} 50... Ne7 {[%clk 0:00:14.3]} 51. f4 {[%clk 0:01:45.4]}
51... g6 {[%clk 0:00:13.2]} 52. hxg6 {[%clk 0:01:43.8]} 52... Nxg6 {[%clk
0:00:11.2]} 53. f5 {[%clk 0:01:39.7]} 53... Ne7 {[%clk 0:00:09.5]} 54. fxe6
{[%clk 0:01:38.6]} 54... fxe6 {[%clk 0:00:08.5]} 55. Kf4 {[%clk 0:01:34.9]}
55... Ng6+ {[%clk 0:00:07.2]} 56. Kf3 {[%clk 0:01:32.1]} 56... Nf8 {[%clk
0:00:05.4]} 57. Ra7 {[%clk 0:01:29.1]} 57... Kg5 {[%clk 0:00:02.4]} 58. Rg7+
{[%clk 0:01:26.3]} 58... Ng6 {[%clk 0:00:01.2]} 59. Rxg6+ {[%clk 0:01:23.2]}
59... Kxg6 {[%clk 0:00:00.2]} 60. Kf4 {[%clk 0:01:22.4]} 1-0